bitfinex-derivatives/quotes_SOLF0:USTF0_20230105
["timestamp","ask_amount","ask_price","bid_price","bid_amount"]
[1672953634481,221.2,13.511,13.507,111.084]
[1672953634902,221.2,13.511,13.508,10.0]
[1672953635120,221.2,13.511,13.509,37.024]
[1672953635331,221.2,13.511,13.51,10.0]
[1672953635541,0.06385693,13.514,13.51,74.043]
[1672953635855,221.2,13.515,13.51,111.064]
[1672953641003,10.0,13.514,13.51,111.064]
[1672953642794,10.0,13.514,13.51,37.021]
[1672953642999,221.2,13.513,13.51,37.021]
[1672953643209,10.0,13.512,13.51,37.021]
[1672953644158,10.0,13.514,13.51,37.021]
[1672953644681,221.2,13.513,13.51,36.82751843]
[1672953644892,10.0,13.512,13.51,36.82751843]
[1672953646257,10.0,13.514,13.51,36.82751843]
[1672953647508,10.0,13.514,13.508,0.00915838]
[1672953647723,10.0,13.507,13.501,74.088]
[1672953648141,221.2,13.506,13.501,37.045]
[1672953648356,10.0,13.505,13.501,37.045]
[1672953648989,10.0,13.505,13.501,111.137]
[1672953649202,10.0,13.505,13.501,37.045]
[1672953649407,221.2,13.503,13.501,37.045]
[1672953649616,10.0,13.502,13.501,37.045]
[1672953649933,10.0,13.502,13.5,37.048]
[1672953650347,221.2,13.503,13.5,37.048]
[1672953650772,10.0,13.502,13.5,37.048]
[1672953651297,10.0,13.502,13.496,0.06266828]
[1672953651508,10.0,13.502,13.497,74.114]
[1672953651718,10.0,13.502,13.496,0.06266828]
[1672953651921,10.0,13.502,13.497,111.169]
[1672953652136,10.0,13.502,13.497,37.055]
[1672953652347,221.2,13.5,13.497,37.055]
[1672953657601,221.2,13.497,13.493,74.134]
[1672953657814,10.0,13.496,13.493,74.134]
[1672953658022,10.0,13.496,13.494,37.065]
[1672953658235,221.2,13.497,13.494,37.065]
[1672953658965,221.2,13.498,13.494,37.065]
[1672953660020,44.54,13.499,13.494,37.065]
[1672953660021,0.06733305,13.5,13.495,10.0]
[1672953660340,0.06733305,13.5,13.496,111.175]
[1672953660543,221.2,13.502,13.497,121.165]
[1672953660750,221.2,13.502,13.498,111.159]
[1672953660963,221.2,13.502,13.499,10.0]
[1672953661177,221.2,13.505,13.499,10.0]
[1672953662546,221.2,13.505,13.5,111.147]
[1672953662853,221.26837732,13.507,13.501,10.0]
[1672953663491,221.26837732,13.507,13.502,111.123]
[1672953663803,221.26837732,13.507,13.501,10.0]
[1672953663804,221.26837732,13.507,13.503,10.0]
[1672953664009,221.2,13.507,13.501,10.0]
[1672953664226,221.2,13.506,13.5,0.06923701]
[1672953664540,10.0,13.505,13.5,0.06923701]
[1672953664750,10.0,13.505,13.502,37.041]
[1672953664961,221.2,13.506,13.502,37.041]
[1672953665171,0.06609366,13.507,13.5,0.06923701]
[1672953665172,231.2,13.505,13.5,0.06923701]
[1672953665380,10.0,13.504,13.5,0.06923701]
[1672953665589,10.0,13.504,13.499,10.0]
[1672953665800,221.2,13.505,13.5,37.046]
[1672953666013,221.2,13.505,13.501,10.0]
[1672953666219,0.06609366,13.507,13.501,10.0]
[1672953666429,0.06609366,13.507,13.502,37.043]
[1672953666747,0.06609366,13.507,13.503,10.0]
[1672953666957,221.2,13.508,13.503,47.039]
[1672953667271,221.2,13.508,13.501,10.0]
[1672953667590,10.0,13.507,13.501,37.044]
[1672953668421,10.0,13.507,13.498,44.54]
[1672953668630,231.2,13.498,13.487,10.0]
[1672953668843,221.2,13.495,13.487,10.0]
[1672953669052,10.0,13.494,13.487,10.0]
[1672953669792,10.0,13.494,13.488,37.08]
[1672953670003,10.0,13.494,13.489,10.0]
[1672953670423,10.0,13.494,13.489,47.078]
[1672953670635,10.0,13.494,13.489,37.078]
[1672953671056,221.27131566,13.495,13.489,37.078]
[1672953671057,10.0,13.493,13.489,37.078]
[1672953671792,10.0,13.493,13.488,37.081]
[1672953672844,10.0,13.493,13.487,37.083]
[1672953673054,10.0,13.493,13.486,0.06121115]
[1672953673264,268.268,13.493,13.486,0.06121115]
[1672953673681,342.404,13.493,13.486,0.06121115]
[1672953673893,221.2,13.491,13.486,0.00121115]
[1672953674102,221.2,13.489,13.486,0.00121115]
[1672953674316,10.0,13.488,13.481,10.0]
[1672953675158,10.0,13.488,13.48,60.06940271]
[1672953675365,10.0,13.488,13.48,50.06940271]
[1672953675570,265.4,13.487,13.48,0.06940271]
[1672953675895,10.0,13.483,13.48,0.06940271]
[1672953676104,10.0,13.483,13.477,111.40205206]
[1672953676310,10.0,13.483,13.477,0.06905206]
[1672953676723,10.0,13.483,13.478,37.109]
[1672953676935,10.0,13.483,13.477,0.06905206]
[1672953677358,10.0,13.481,13.477,0.06905206]
[1672953677570,10.0,13.481,13.476,37.114]
[1672953679465,221.2,13.481,13.476,37.114]
[1672953679673,10.0,13.48,13.476,37.114]
[1672953680412,221.2,13.481,13.476,37.114]
[1672953680621,0.06519269,13.483,13.476,37.114]
[1672953680834,10.06519269,13.483,13.476,37.114]
[1672953684935,0.06519269,13.483,13.476,37.114]
[1672953685356,0.06519269,13.483,13.477,10.0]
[1672953685671,0.06519269,13.483,13.478,111.321]
[1672953685985,0.06519269,13.483,13.48,111.309]
[1672953686192,10.06413592,13.486,13.483,0.21207455]
[1672953686510,10.0,13.486,13.484,37.093]
[1672953686722,10.0,13.486,13.483,0.21207455]
[1672953687132,10.0,13.486,13.483,37.30707455]
[1672953688297,221.2,13.485,13.483,0.21207455]
[1672953688503,10.0,13.484,13.483,0.21207455]
[1672953688713,231.2,13.484,13.483,0.21207455]
[1672953689238,258.293,13.484,13.483,0.21207455]
[1672953689450,221.2,13.484,13.483,0.21207455]
[1672953689660,44.54,13.488,13.483,0.21207455]
[1672953689661,221.2,13.487,13.483,0.21207455]
[1672953689862,221.2,13.485,13.483,0.21207455]
[1672953690396,221.2,13.485,13.483,37.30607455]
[1672953690920,221.2,13.486,13.483,37.30607455]
[1672953691230,221.1229722,13.486,13.483,37.30607455]
[1672953691970,221.1229722,13.487,13.483,37.30607455]
[1672953692286,221.1229722,13.485,13.483,37.30607455]
[1672953693013,10.0,13.484,13.483,0.21207455]
[1672953694176,221.1229722,13.485,13.483,37.30707455]
[1672953694803,221.1229722,13.485,13.483,0.21207455]
[1672953695326,10.0,13.484,13.48,0.07080487]
[1672953695647,47.1,13.482,13.477,0.06255067]
[1672953695855,231.1229722,13.481,13.475,10.06232978]
[1672953696067,231.1229722,13.481,13.477,37.111]
[1672953696068,10.0,13.48,13.477,37.111]
[1672953696899,221.1229722,13.48,13.477,37.111]
[1672953697434,10.0,13.479,13.477,37.111]
[1672953697960,221.1229722,13.48,13.477,37.111]
[1672953698275,10.0,13.48,13.477,111.335]
[1672953698685,221.1229722,13.481,13.478,10.0]
[1672953698902,221.1229722,13.481,13.473,10.066876]
[1672953699218,221.1229722,13.48,13.473,0.066876]
[1672953699432,10.0,13.479,13.474,37.119]
[1672953700270,231.1229722,13.479,13.473,0.066876]
[1672953700482,312.7699722,13.479,13.473,0.066876]
[1672953701008,312.7699722,13.479,13.473,37.189876]
[1672953702063,231.1229722,13.479,13.473,111.435876]
[1672953702271,231.1229722,13.479,13.473,37.189876]
[1672953703003,268.2299722,13.479,13.473,37.189876]
[1672953703323,312.7699722,13.479,13.473,37.189876]
[1672953703533,312.7699722,13.479,13.473,0.066876]
[1672953704481,221.1229722,13.476,13.473,0.066876]
[1672953704691,221.1229722,13.474,13.47,37.20107576]
[1672953704903,10.0,13.473,13.468,74.274]
[1672953705107,10.0,13.473,13.469,37.133]
[1672953705317,265.6629722,13.47,13.467,0.06903656]
[1672953705530,265.6629722,13.47,13.464,0.07096861]
[1672953705846,221.1229722,13.467,13.462,0.06533475]
[1672953706160,10.0,13.466,13.46,0.062961]
[1672953706372,10.0,13.466,13.46,37.156]
[1672953706581,221.1229722,13.467,13.46,37.156]
[1672953706786,44.48,13.459,13.43,372.414]
[1672953707001,10.0,13.451,13.441,10.0]
[1672953707420,10.0,13.451,13.431,44.309]
[1672953707630,221.1229722,13.453,13.442,10.0]
[1672953707839,0.00587917,13.452,13.447,44.3]
[1672953708052,221.2,13.459,13.451,44.33]
[1672953708261,10.0,13.458,13.452,10.0]
[1672953708475,10.0,13.458,13.453,37.177]
[1672953708679,10.0,13.458,13.452,10.0]
[1672953709101,10.0,13.459,13.452,47.181]
[1672953709307,221.26228999,13.46,13.452,47.181]
[1672953709522,221.26228999,13.46,13.452,121.543]
[1672953709838,0.06228999,13.46,13.452,121.543]
[1672953710157,0.06228999,13.46,13.452,164.7176]
[1672953710683,10.0,13.459,13.452,154.7176]
[1672953710888,10.0,13.459,13.452,111.543]
[1672953711208,10.0,13.459,13.452,37.181]
[1672953711419,221.26228999,13.46,13.453,10.0]
[1672953711630,10.0,13.459,13.455,37.172]
[1672953711943,0.06228999,13.46,13.454,44.54]
[1672953712151,0.06228999,13.46,13.453,74.356]
[1672953712574,221.2,13.459,13.452,0.06574459]
[1672953712784,10.0,13.458,13.452,37.24474459]
[1672953712995,10.0,13.458,13.453,10.0]
[1672953713308,221.2,13.459,13.454,37.174]
[1672953713521,0.06228999,13.46,13.454,37.174]
[1672953713728,0.06228999,13.46,13.455,10.0]
[1672953713942,44.2,13.471,13.459,94.44]
[1672953714147,10.0,13.47,13.46,53.3731]
[1672953714464,10.0,13.47,13.462,111.454]
[1672953714669,10.0,13.47,13.463,10.0]
[1672953715727,10.06467125,13.471,13.466,10.0]
[1672953716139,10.06467125,13.471,13.466,47.142]
[1672953716356,10.06467125,13.471,13.466,37.142]
[1672953716662,0.06467125,13.471,13.467,10.0]
[1672953716871,55.63,13.481,13.467,10.0]
[1672953716872,221.26799234,13.474,13.468,37.135]
[1672953717086,221.2,13.474,13.468,111.409]
[1672953717298,221.2,13.474,13.469,10.0]
[1672953717508,221.2,13.474,13.47,37.13]
[1672953717718,221.2,13.474,13.471,10.0]
[1672953718034,221.2,13.475,13.471,10.0]
[1672953718247,221.2,13.475,13.472,37.126]
[1672953718458,221.2,13.475,13.473,10.0]
[1672953718659,221.2,13.475,13.473,47.122]
[1672953718869,221.2,13.475,13.473,37.122]
[1672953719294,221.2,13.475,13.473,37.121]
[1672953720765,221.2,13.478,13.475,37.117]
[1672953720990,221.2,13.478,13.476,10.0]
[1672953721179,10.0,13.477,13.472,0.07090945]
[1672953721602,221.2,13.478,13.472,0.07090945]
[1672953722027,10.0,13.477,13.472,0.07090945]
[1672953722236,221.2,13.478,13.472,0.07090945]
[1672953722650,10.0,13.477,13.472,0.07090945]
[1672953722865,10.0,13.477,13.472,37.19490945]
[1672953723077,10.0,13.48,13.472,37.19490945]
[1672953723290,10.0,13.48,13.473,10.0]
[1672953723497,221.2,13.479,13.474,37.118]
[1672953723707,10.0,13.478,13.474,37.118]
[1672953723914,10.0,13.478,13.475,10.0]
[1672953724122,221.2,13.479,13.475,10.0]
[1672953724331,221.2,13.477,13.473,10.0]
[1672953724756,221.2,13.477,13.472,10.07090945]
[1672953724964,10.0,13.476,13.472,0.07090945]
[1672953725174,265.4,13.474,13.469,0.06424093]
[1672953725388,10.0,13.473,13.47,37.131]
[1672953725596,265.4,13.474,13.47,37.131]
[1672953725806,221.2,13.474,13.471,10.0]
[1672953726014,221.2,13.474,13.469,0.06424093]
[1672953726650,10.0,13.473,13.469,0.06424093]
[1672953726861,221.2,13.472,13.466,0.0612185]
[1672953727071,10.0,13.471,13.466,37.2012185]
[1672953728016,220.98484956,13.472,13.466,37.2012185]
[1672953728653,220.98484956,13.472,13.462,155.784]
[1672953728654,265.18484956,13.467,13.455,10.0]
[1672953728862,220.98484956,13.463,13.455,10.0]
[1672953729075,220.98484956,13.463,13.457,37.164]
[1672953729287,10.0,13.462,13.458,10.0]
[1672953729497,220.98484956,13.463,13.458,10.0]
[1672953729705,220.98484956,13.463,13.459,37.161]
[1672953729916,220.98484956,13.463,13.46,10.0]
[1672953730128,0.06206583,13.465,13.46,10.0]
[1672953730338,0.06206583,13.465,13.461,37.156]
[1672953730547,265.18484956,13.466,13.462,10.0]
[1672953730967,265.18484956,13.466,13.463,37.15]
[1672953733594,265.18484956,13.466,13.46,10.0]
[1672953734225,265.18484956,13.466,13.461,37.154]
[1672953734648,302.32784956,13.466,13.459,10.06218242]
[1672953735800,220.98484956,13.467,13.461,10.0]
[1672953736012,10.0,13.466,13.461,10.0]
[1672953736219,10.0,13.466,13.462,37.151]
[1672953736638,220.98484956,13.467,13.463,10.0]
[1672953736959,0.06305317,13.468,13.464,37.147]
[1672953737169,220.98484956,13.469,13.465,10.0]
[1672953737380,220.98484956,13.469,13.466,37.142]
[1672953738634,220.98484956,13.469,13.463,84.299]
[1672953738851,10.0,13.468,13.464,37.147]
[1672953739163,220.98484956,13.469,13.465,10.0]
[1672953739374,220.98484956,13.469,13.462,74.36569499]
[1672953739794,258.11984956,13.469,13.464,37.147]
[1672953740850,220.98484956,13.465,13.462,0.06069499]
[1672953741061,220.98484956,13.463,13.46,37.158]
[1672953741589,10.0,13.462,13.46,37.158]
[1672953742006,220.98484956,13.463,13.46,37.158]
[1672953742217,220.98484956,13.464,13.46,37.158]
[1672953742428,10.0,13.463,13.46,37.158]
[1672953742634,220.98484956,13.464,13.463,0.21558367]
[1672953742845,220.98484956,13.464,13.463,37.36558367]
[1672953743157,220.98484956,13.464,13.463,0.21558367]
[1672953743898,220.98484956,13.464,13.463,37.36558367]
[1672953744107,220.98484956,13.464,13.463,0.21558367]
[1672953745577,258.13284956,13.464,13.463,0.21558367]
[1672953745787,220.98484956,13.464,13.463,0.21558367]
[1672953746943,258.13284956,13.464,13.463,0.21558367]
[1672953747358,220.98484956,13.464,13.463,0.21558367]
[1672953747781,220.91855364,13.464,13.463,0.21558367]
[1672953748515,258.06655364,13.464,13.463,0.21558367]
[1672953748726,308.06655364,13.464,13.463,8.367e-05]
[1672953748939,220.91855364,13.461,13.451,10.0]
[1672953749149,10.0,13.457,13.452,74.357]
[1672953749354,10.0,13.457,13.453,47.178]
[1672953749564,220.91855364,13.458,13.454,10.0]
[1672953750200,220.91855364,13.458,13.455,37.172]
[1672953750406,258.08355364,13.458,13.455,37.172]
[1672953752300,220.91855364,13.46,13.456,84.335]
[1672953752718,10.0,13.459,13.457,37.167]
[1672953752924,220.91855364,13.46,13.457,37.167]
[1672953753774,258.07755364,13.46,13.457,37.167]
[1672953754088,220.91855364,13.46,13.454,10.0]
[1672953754299,0.06163768,13.461,13.458,10.0]
[1672953754510,44.2,13.463,13.458,10.0]
[1672953754825,220.91855364,13.462,13.459,111.483]
[1672953755138,220.91855364,13.462,13.46,10.0]
[1672953755346,220.91855364,13.462,13.461,111.468]
[1672953755551,0.06961787,13.464,13.461,37.156]
[1672953755762,230.91855364,13.465,13.461,37.156]
[1672953755975,10.0,13.464,13.461,37.156]
[1672953756718,0.06287576,13.467,13.462,10.0]
[1672953756928,0.06287576,13.467,13.463,37.149]
[1672953757138,220.91855364,13.469,13.464,10.0]
[1672953757343,220.91855364,13.469,13.465,37.144]
[1672953757864,0.06072408,13.47,13.466,10.0]
[1672953758078,220.91855364,13.471,13.467,37.138]
[1672953758285,220.91855364,13.471,13.467,111.415]
[1672953758500,220.91855364,13.471,13.468,10.0]
[1672953758711,220.91855364,13.471,13.469,37.134]
[1672953758922,0.07140958,13.473,13.469,37.134]
[1672953759132,220.91855364,13.475,13.47,10.0]
[1672953759344,10.0,13.474,13.471,37.128]
[1672953759663,10.0,13.474,13.471,36.98660019]
[1672953760292,10.0,13.474,13.468,0.07134635]
[1672953760499,10.0,13.474,13.471,37.127]
[1672953760712,220.91855364,13.473,13.468,0.07134635]
[1672953760915,10.0,13.472,13.469,37.132]
[1672953761446,10.0,13.472,13.469,111.4]
[1672953762073,220.91855364,13.473,13.469,111.4]
[1672953762601,220.91855364,13.473,13.469,37.132]
[1672953763015,220.91855364,13.47,13.468,0.07134635]
[1672953763230,220.91855364,13.47,13.464,0.06553088]
[1672953763440,332.31255364,13.47,13.462,0.07136761]
[1672953763651,10.0,13.469,13.462,37.22436761]
[1672953763863,220.91855364,13.466,13.462,37.22436761]
[1672953764070,10.0,13.465,13.462,37.153]
[1672953764914,220.91855364,13.464,13.459,0.06407623]
[1672953765753,10.0,13.463,13.459,0.06407623]
[1672953765961,10.0,13.463,13.459,37.16]
[1672953768170,230.91855364,13.463,13.456,0.06170123]
[1672953768586,268.07055364,13.463,13.456,0.06170123]
[1672953768796,268.07055364,13.463,13.456,37.22870123]
[1672953769002,230.91855364,13.463,13.456,37.22870123]
[1672953769217,10.0,13.463,13.456,37.22870123]
[1672953769853,230.91855364,13.463,13.456,37.22870123]
[1672953770695,268.07055364,13.463,13.456,37.22870123]
[1672953770904,220.91855364,13.46,13.451,74.366]
[1672953771112,220.91855364,13.458,13.451,74.366]
[1672953771323,10.0,13.457,13.451,74.366]
[1672953771532,10.0,13.457,13.453,37.176]
[1672953772055,10.0,13.457,13.453,111.533]
[1672953773112,10.0,13.457,13.453,37.176]
[1672953773321,10.0,13.457,13.45,0.06608988]
[1672953773536,220.91855364,13.456,13.45,74.43808988]
[1672953773734,10.0,13.455,13.45,74.43808988]
[1672953774269,10.0,13.455,13.452,37.18]
[1672953774685,10.0,13.455,13.452,111.542]
[1672953774895,10.06967665,13.457,13.452,111.542]
[1672953776161,220.91855364,13.456,13.451,37.182]
[1672953776374,10.0,13.455,13.451,37.182]
[1672953777419,220.91855364,13.451,13.434,44.23]
[1672953777629,220.91855364,13.445,13.439,74.433]
[1672953777841,10.0,13.444,13.44,37.211]
[1672953778043,10.0,13.444,13.441,10.0]
[1672953778252,220.91855364,13.445,13.441,10.0]
[1672953778467,220.91855364,13.445,13.438,0.06838913]
[1672953778676,10.0,13.444,13.438,0.06838913]
[1672953778891,220.91855364,13.443,13.438,37.28738913]
[1672953779101,10.0,13.442,13.438,37.28738913]
[1672953779410,10.0,13.442,13.438,37.219]
[1672953779626,220.91855364,13.443,13.438,37.219]
[1672953779836,10.0,13.442,13.435,84.51305424]
[1672953780256,0.06141819,13.443,13.435,10.06105424]
[1672953780468,0.06141819,13.443,13.438,37.219]
[1672953780680,0.06141819,13.443,13.439,10.0]
[1672953780885,10.0,13.444,13.439,10.0]
[1672953781096,220.91855364,13.445,13.439,47.215]
[1672953781413,0.06226541,13.446,13.441,44.3]
[1672953781726,0.06226541,13.446,13.442,121.622]
[1672953781931,0.06214998,13.449,13.442,121.622]
[1672953782138,0.06214998,13.449,13.443,44.19]
[1672953782351,0.06214998,13.449,13.446,47.197]
[1672953782563,0.06679523,13.452,13.446,37.197]
[1672953782775,220.91855364,13.45,13.444,10.06039549]
[1672953782986,220.91855364,13.45,13.445,37.197]
[1672953783197,10.0,13.449,13.446,10.0]
[1672953783408,220.91855364,13.45,13.446,10.0]
[1672953783613,220.91855364,13.45,13.446,47.196]
[1672953783820,220.91855364,13.452,13.446,47.196]
[1672953784870,0.06059224,13.454,13.447,44.54]
[1672953785084,160.86914588,13.456,13.452,44.54]
[1672953785290,160.86914588,13.456,13.455,10.0]
[1672953785927,44.35,13.459,13.451,185.915]
[1672953786132,221.26438199,13.46,13.451,185.915]
[1672953786347,221.26035995,13.46,13.455,111.511]
[1672953786767,10.0,13.459,13.455,37.17]
[1672953787186,44.2,13.457,13.451,0.07117617]
[1672953787396,10.0,13.455,13.451,0.07117617]
[1672953787606,10.0,13.455,13.448,0.06528568]
[1672953788448,10.0,13.455,13.45,37.184]
[1672953789608,265.80455158,13.456,13.45,37.184]
[1672953789920,10.0,13.455,13.45,37.184]
[1672953791180,265.4,13.454,13.448,37.25628568]
[1672953791390,10.06,13.448,13.438,10.0]
[1672953791808,10.0,13.446,13.441,111.631]
[1672953792551,221.2,13.447,13.441,111.631]
[1672953792764,221.26568582,13.448,13.441,111.631]
[1672953794131,0.06568582,13.448,13.441,111.631]
[1672953794337,221.2,13.447,13.441,37.211]
[1672953794656,10.0,13.446,13.441,37.211]
[1672953795287,231.2,13.446,13.439,0.06836971]
[1672953795920,231.2,13.446,13.44,37.213]
[1672953796234,10.0,13.446,13.441,10.0]
[1672953796444,10.0,13.446,13.441,47.21]
[1672953796649,10.0,13.446,13.439,0.06836971]
[1672953796650,221.2,13.445,13.439,0.06836971]
[1672953796865,10.0,13.444,13.439,0.06836971]
[1672953797074,10.0,13.444,13.44,37.213]
[1672953797286,221.2,13.445,13.44,37.213]
[1672953797599,221.2,13.445,13.441,10.0]
[1672953797913,10.0,13.446,13.442,37.208]
[1672953798123,10.0,13.446,13.441,10.0]
[1672953798325,221.2,13.447,13.442,37.207]
[1672953800330,0.06568582,13.448,13.444,37.201]
[1672953800539,10.0,13.449,13.444,37.201]
[1672953800745,221.2,13.45,13.445,10.0]
[1672953800952,221.2,13.45,13.446,111.588]
[1672953801165,0.06727556,13.451,13.446,111.588]
[1672953801377,0.06727556,13.451,13.447,10.0]
[1672953801697,0.06198515,13.454,13.448,37.191]
[1672953802011,221.26198515,13.454,13.449,10.0]
[1672953802221,10.0,13.453,13.45,37.186]
[1672953802955,221.2,13.454,13.45,37.186]
[1672953803164,221.2,13.453,13.45,37.186]
[1672953804321,221.2,13.452,13.45,37.186]
[1672953804531,221.2,13.452,13.451,10.0]
[1672953804742,0.06285855,13.456,13.451,47.184]
[1672953806318,10.0,13.46,13.456,0.17473265]
[1672953806529,10.0,13.46,13.457,37.166]
[1672953806738,221.2,13.461,13.457,37.166]
[1672953806953,221.2,13.462,13.457,37.166]
[1672953808102,10.0,13.461,13.457,37.166]
[1672953809369,221.2,13.462,13.457,37.166]
[1672953810522,0.06860217,13.464,13.458,10.0]
[1672953810728,0.06860217,13.464,13.459,111.478]
[1672953811142,0.06860217,13.464,13.46,10.0]
[1672953811462,10.0,13.465,13.46,47.158]
[1672953811780,10.0,13.465,13.46,37.158]
[1672953812614,10.0,13.465,13.46,111.476]
[1672953813357,10.0,13.466,13.46,111.476]
[1672953814303,258.40778821,13.467,13.46,111.476]
[1672953814514,221.26678821,13.467,13.46,111.476]
[1672953814725,221.26678821,13.467,13.461,10.0]
[1672953814935,221.26678821,13.467,13.462,111.458]
[1672953815145,221.26678821,13.467,13.463,10.0]
[1672953815355,221.2,13.467,13.463,10.0]
[1672953815565,221.2,13.466,13.463,10.0]
[1672953815776,221.2,13.466,13.463,47.148]
[1672953816200,221.2,13.466,13.463,37.148]
[1672953816511,221.2,13.467,13.461,10.0]
[1672953816827,10.0,13.466,13.462,10.0]
[1672953817034,221.2,13.467,13.462,10.0]
[1672953817250,221.2,13.467,13.462,47.153]
[1672953817564,221.2,13.469,13.462,47.153]
[1672953817778,10.0,13.468,13.462,47.153]
[1672953818089,221.2,13.469,13.462,47.153]
[1672953819037,221.13162302,13.467,13.462,47.153]
[1672953819351,10.0,13.466,13.462,37.153]
[1672953819769,10.0,13.466,13.46,0.06113001]
[1672953820195,231.13162302,13.466,13.46,0.06113001]
[1672953820720,231.13162302,13.466,13.462,37.152]
[1672953820927,157.85556675,13.466,13.463,10.0]
[1672953821142,124.77756675,13.466,13.463,10.0]
[1672953821352,571.07137851,13.47,13.464,111.444]
[1672953821557,0.07137851,13.47,13.464,111.444]
[1672953821773,0.07137851,13.47,13.465,10.0]
[1672953821979,0.07137851,13.47,13.466,111.423]
[1672953822193,221.2,13.471,13.467,10.0]
[1672953822506,221.2,13.471,13.468,111.41]
[1672953823033,0.07087921,13.473,13.469,10.0]
[1672953823244,221.2,13.474,13.47,111.393]
[1672953823457,221.2,13.474,13.471,10.0]
[1672953823764,221.2,13.474,13.472,37.126]
[1672953823973,0.06170004,13.476,13.468,74.268]
[1672953824187,10.0,13.474,13.466,0.07041227]
[1672953824394,10.0,13.474,13.471,37.127]
[1672953825130,231.2,13.474,13.469,37.133]
[1672953825344,221.2,13.472,13.466,0.07041227]
[1672953825554,10.0,13.471,13.466,0.07041227]
[1672953826290,10.0,13.469,13.466,0.07041227]
[1672953826501,10.0,13.469,13.462,74.306]
[1672953826710,10.0,13.469,13.463,10.0600689]
[1672953827126,221.2,13.468,13.463,37.2090689]
[1672953827337,10.0,13.467,13.463,37.2090689]
[1672953827547,10.0,13.467,13.463,37.149]
[1672953828078,268.341,13.467,13.46,84.37905361]
[1672953828394,268.341,13.467,13.461,74.308]
[1672953828814,268.341,13.467,13.462,10.0]
[1672953829024,258.341,13.467,13.462,10.0]
[1672953829236,221.2,13.468,13.463,37.15]
[1672953829442,10.0,13.467,13.463,37.15]
[1672953830287,231.2,13.467,13.463,37.15]
[1672953830488,231.2,13.467,13.46,0.06205361]
[1672953830702,231.2,13.467,13.46,0.00205361]
[1672953830914,268.341,13.467,13.46,0.00205361]
[1672953831961,221.2,13.463,13.456,0.17473265]
[1672953832177,221.2,13.46,13.456,0.17473265]
[1672953832381,10.0,13.459,13.456,0.17473265]
[1672953832592,221.2,13.458,13.456,0.17473265]
[1672953832801,10.0,13.457,13.456,0.17473265]
[1672953833645,221.2,13.459,13.456,0.17473265]
[1672953833962,10.0,13.458,13.456,0.17473265]
[1672953834594,231.2,13.458,13.456,0.17473265]
[1672953835119,268.366,13.458,13.456,0.17473265]
[1672953837320,342.695,13.458,13.456,0.17473265]
[1672953837538,342.695,13.458,13.456,3.265e-05]
[1672953839005,10.0,13.457,13.448,37.16147491]
[1672953839209,221.2,13.453,13.443,163.584]
[1672953839417,10.0,13.452,13.447,37.192]
[1672953840899,221.2,13.451,13.447,37.192]